fUST/lending_fUST_20250730
["ID","MTS","AMOUNT","RATE_DAILY","PERIOD"]
[376040907,1753834245657,-460.0,0.00020256,2]
[376040908,1753834245667,-1525.58,0.00020256,2]
[376040909,1753834245677,-460.0,0.00020256,2]
[376040910,1753834245687,-582.34,0.00020256,2]
[376040911,1753834245697,-2448.7,0.00020256,2]
[376040912,1753834245707,-1481.89,0.00020256,2]
[376040913,1753834245717,-460.0,0.00020256,2]
[376040914,1753834245727,-1072.47,0.00020256,2]
[376040915,1753834245737,-460.0,0.00020256,2]
[376040916,1753834245747,-460.0,0.00020256,2]
[376040917,1753834245757,-460.0,0.00020256,2]
[376040918,1753834245767,-381.48584609,0.00020257,2]
[376040919,1753834245777,-460.0,0.00020257,2]
[376040920,1753834245787,-641.04,0.00020257,2]
[376040921,1753834245797,-529.99,0.00020257,2]
[376040922,1753834245808,-518.35,0.00020257,2]
[376040923,1753834245818,-460.0,0.00020257,2]
[376040924,1753834245829,-460.0,0.00020257,2]
[376040925,1753834245839,-460.0,0.00020257,2]
[376040926,1753834245849,-460.0,0.00020257,2]
[376040927,1753834245860,-1215.6,0.00020257,2]
[376040928,1753834245870,-1028.48,0.00020257,2]
[376040929,1753834245881,-785.59,0.00020257,2]
[376040930,1753834245890,-606.35485263,0.00020257,2]
[376040931,1753834245900,-218.15132,0.00020258,2]
[376040932,1753834245911,-191.816842,0.00020258,2]
[376040933,1753834245922,-191.816842,0.00020258,2]
[376040935,1753834245933,-3619.67,0.00020258,2]
[376040936,1753834245943,-1534.46,0.00020258,2]
[376040937,1753834245953,-590.56,0.00020258,2]
[376040938,1753834245964,-1011.49,0.00020258,2]
[376040939,1753834245975,-1115.69,0.00020258,2]
[376040940,1753834245985,-151.0,0.00020259,2]
[376040941,1753834245995,-151.0,0.00020259,2]
[376040943,1753834246005,-151.0,0.00020259,2]
[376040945,1753834246015,-151.0,0.00020259,2]
[376040947,1753834246026,-151.0,0.00020259,2]
[376040949,1753834246036,-830.01,0.00020259,2]
[376040951,1753834246046,-291.656937,0.00020259,2]
[376040953,1753834246056,-291.656937,0.00020259,2]
[376040961,1753834246227,-237.577106,0.00020259,2]
[376040962,1753834246238,-237.577106,0.00020259,2]
[376040963,1753834246248,-151.0,0.00020259,2]
[376040964,1753834246260,-3000.0,0.0002026,2]
[376040965,1753834246271,-151.0,0.0002026,2]
[376040967,1753834246281,-869.0,0.00020262,2]
[376040969,1753834246291,-3000.0,0.0002027,2]
[376040970,1753834246300,-3000.0,0.0002028,2]
[376040972,1753834246310,-151.0,0.0002028,2]
[376040973,1753834246320,-688.1,0.00020284,3]
[376040974,1753834246330,-4254.638326,0.0002029,2]
[376040975,1753834246340,-151.0,0.0002029,2]
[376040976,1753834246349,-550.605119,0.0002029,2]
[376040977,1753834246359,-550.605119,0.0002029,2]
[376040978,1753834246369,-174.445871,0.0002029,2]
[376040979,1753834246380,-707.133271,0.0002029,2]
[376040980,1753834246390,-707.133271,0.0002029,2]
[376040981,1753834246399,-1194.77548466,0.000203,2]
[376040982,1753834246409,-500.0,0.00020302,2]
[376040983,1753834246419,-252.84810039,0.00020302,2]
[376040984,1753834246428,-1000.0,0.00020302,2]
[376040985,1753834246438,-1000.0,0.00020302,2]
[376040986,1753834246448,-500.0,0.00020333,2]
[376040988,1753834246458,-1000.0,0.00020339,2]
[376040990,1753834246468,-321.95241112,0.00020354,2]
[376040992,1753834246477,-1002.0738235,0.00020354,2]
[376040994,1753834246487,-1000.0,0.00020363,2]
[376040995,1753834246497,-260.0,0.00020394,2]
[376040998,1753834246506,-2151.0,0.00020487,2]
[376041000,1753834246520,-969.0,0.00020509,2]
[376041002,1753834246529,-407.0,0.00020509,2]
[376041004,1753834246539,-425.682,0.00020509,2]
[376041006,1753834246549,-151.0,0.0002051,2]
[376041008,1753834246559,-151.0,0.0002051,2]
[376041010,1753834246569,-578.1881624,0.00020526,2]
[376041012,1753834246579,-184.30578,0.00020527,2]
[376041014,1753834246589,-688.1,0.00020527,3]
[376041016,1753834246600,-494.91,0.0002053,2]
[376041018,1753834246610,-460.0,0.0002053,2]
[376041020,1753834246619,-465.29,0.0002053,2]
[376041022,1753834246629,-460.0,0.0002053,2]
[376041024,1753834246639,-1629.83,0.0002053,2]
[376041026,1753834246649,-460.0,0.0002053,2]
[376041028,1753834246659,-1525.58,0.0002053,2]
[376041030,1753834246669,-460.0,0.0002053,2]
[376041032,1753834246678,-582.34,0.0002053,2]
[376041034,1753834246688,-2448.7,0.0002053,2]
[376041036,1753834246698,-1481.89,0.0002053,2]
[376041038,1753834246708,-460.0,0.0002053,2]
[376041040,1753834246718,-1072.47,0.0002053,2]
[376041042,1753834246727,-460.0,0.0002053,2]
[376041044,1753834246738,-460.0,0.0002053,2]
[376041046,1753834246748,-460.0,0.0002053,2]
[376041048,1753834246758,-191.816842,0.00020531,2]
[376041049,1753834246769,-191.816842,0.00020531,2]
[376041051,1753834246779,-460.0,0.00020531,2]
[376041053,1753834246788,-641.04,0.00020531,2]
[376041056,1753834246798,-529.99,0.00020531,2]
[376041057,1753834246808,-518.35,0.00020531,2]
[376041059,1753834246817,-460.0,0.00020531,2]
[376041061,1753834246827,-291.656937,0.00020531,2]
[376041064,1753834246837,-291.656937,0.00020531,2]
[376041066,1753834246847,-460.0,0.00020531,2]
[376041068,1753834246856,-460.0,0.00020531,2]
[376041070,1753834246867,-460.0,0.00020531,2]
[376041072,1753834246879,-237.577106,0.00020531,2]
[376041074,1753834246888,-237.577106,0.00020531,2]
[376041076,1753834246898,-1215.6,0.00020531,2]
[376041078,1753834246907,-151.0,0.00020531,2]
[376041080,1753834246918,-1028.48,0.00020531,2]
[376041081,1753834246927,-785.59,0.00020531,2]
[376041082,1753834246938,-151.0,0.00020532,2]
[376041083,1753834246948,-151.0,0.00020532,2]
[376041084,1753834246957,-151.0,0.00020532,2]
[376041085,1753834246967,-220.004257,0.00020532,2]
[376041086,1753834246976,-151.0,0.00020532,2]
[376041087,1753834246986,-3619.67,0.00020532,2]
[376041089,1753834246996,-151.0,0.00020532,2]
[376041091,1753834247006,-1534.46,0.00020532,2]
[376041093,1753834247015,-590.56,0.00020532,2]
[376041095,1753834247025,-1011.49,0.00020532,2]
[376041097,1753834247034,-1115.69,0.00020532,2]
[376041099,1753834247044,-830.01,0.00020533,2]
[376041101,1753834247053,-255.502592,0.00020534,2]
[376041103,1753834247064,-869.0,0.00020536,2]
[376041105,1753834247074,-151.0,0.0002055,2]
[376041107,1753834247083,-151.0,0.0002055,2]
[376041109,1753834247093,-154.434879,0.0002055,2]
[376041111,1753834247103,-280.699319,0.0002055,2]
[376041113,1753834247113,-152.710179,0.0002055,2]
[376041115,1753834247123,-151.0,0.0002055,2]
[376041117,1753834247132,-435.930306,0.0002055,2]
[376041119,1753834247142,-151.0,0.0002055,2]
[376041121,1753834247152,-151.0,0.0002055,2]
[376041123,1753834247161,-271.8,0.0002055,2]
[376041125,1753834247171,-550.605119,0.0002055,2]
[376041127,1753834247181,-550.605119,0.0002055,2]
[376041129,1753834247194,-707.133271,0.0002055,2]
[376041131,1753834247204,-707.133271,0.0002055,2]
[376041133,1753834247213,-500.0,0.00020568,2]
[376041135,1753834247223,-151.0,0.00020568,2]
[376041137,1753834247234,-157.60649676,0.00020581,2]
[376041139,1753834247243,-688.1,0.0002077,4]
[376041141,1753834247252,-319.38,0.00020795,3]
[376041143,1753834247263,-494.91,0.00020804,2]
[376041145,1753834247272,-460.0,0.00020804,2]
[376041147,1753834247281,-465.29,0.00020804,2]
[376041149,1753834247291,-433.58996103,0.00020804,2]
[376041151,1753834247300,-1629.83,0.00020804,2]
[376041153,1753834247309,-203.30534842,0.00020804,2]
[376041155,1753834247319,-1525.58,0.00020804,2]
[376041157,1753834247328,-460.0,0.00020804,2]
[376041159,1753834247338,-582.34,0.00020804,2]
[376041161,1753834247347,-2448.7,0.00020804,2]
[376041163,1753834247357,-1481.89,0.00020804,2]
[376041165,1753834247366,-460.0,0.00020804,2]
[376041167,1753834247376,-1072.47,0.00020804,2]
[376041169,1753834247385,-460.0,0.00020804,2]
[376041171,1753834247395,-460.0,0.00020804,2]
[376041173,1753834247404,-460.0,0.00020804,2]
[376041175,1753834247414,-191.816842,0.00020805,2]
[376041177,1753834247423,-191.816842,0.00020805,2]
[376041179,1753834247432,-460.0,0.00020805,2]
[376041181,1753834247443,-641.04,0.00020805,2]
[376041183,1753834247453,-529.99,0.00020805,2]
[376041185,1753834247462,-518.35,0.00020805,2]
[376041187,1753834247471,-460.0,0.00020805,2]
[376041189,1753834247480,-291.656937,0.00020805,2]
[376041191,1753834247490,-291.656937,0.00020805,2]
[376041193,1753834247499,-460.0,0.00020805,2]
[376041195,1753834247509,-460.0,0.00020805,2]
[376041197,1753834247518,-183.79494976,0.00020805,2]
[376041199,1753834247528,-237.577106,0.00020805,2]
[376041201,1753834247537,-237.577106,0.00020805,2]
[376041203,1753834247547,-1215.6,0.00020805,2]
[376041205,1753834247557,-151.0,0.00020805,2]
[376041207,1753834247566,-1028.48,0.00020805,2]
[376041209,1753834247576,-785.59,0.00020805,2]
[376041211,1753834247586,-151.0,0.00020806,2]
[376041213,1753834247596,-151.0,0.00020806,2]
[376041215,1753834247606,-151.0,0.00020806,2]
[376041217,1753834247615,-159.29416,0.00020806,2]
[376041219,1753834247624,-3619.67,0.00020806,2]
[376041221,1753834247634,-1534.46,0.00020806,2]
[376041223,1753834247644,-590.56,0.00020806,2]
[376041225,1753834247654,-1011.49,0.00020806,2]
[376041227,1753834247663,-1115.69,0.00020806,2]
[376041229,1753834247674,-830.01,0.00020807,2]
[376041231,1753834247685,-869.0,0.0002081,2]
[376041233,1753834247695,-1500.0,0.0002085,2]
[376041235,1753834247704,-1005.36146289,0.0002085,2]
[376041237,1753834247713,-151.0,0.00020884,2]
[376041239,1753834247727,-153.17954011,0.00020887,2]
[376041241,1753834247737,-250.0,0.0002092,2]
[376041243,1753834247747,-360.0,0.00020942,2]
[376041245,1753834247756,-11575.70583583,0.0002099,2]
[376041247,1753834247766,-550.605119,0.0002099,2]
[376041249,1753834247776,-550.605119,0.0002099,2]
[376041251,1753834247785,-707.133271,0.0002099,2]
[376041253,1753834247796,-707.133271,0.0002099,2]
[376041255,1753834247805,-1194.77548466,0.0002099,2]
[376041257,1753834247815,-3000.0,0.00021,2]
[376041259,1753834247824,-151.0,0.00021,2]
[376041261,1753834247834,-178.353079,0.00021,2]
[376041263,1753834247843,-3000.0,0.0002101,2]
[376041266,1753834247853,-688.1,0.00021012,4]
[376041267,1753834247863,-3000.0,0.0002102,2]
[376041270,1753834247873,-151.0,0.0002102,2]
[376041271,1753834247883,-3000.0,0.0002103,2]
[376041274,1753834247894,-191.816842,0.0002103,2]
[376041275,1753834247903,-191.816842,0.0002103,2]
[376041277,1753834247912,-3000.0,0.0002104,2]
[376041280,1753834247922,-291.656937,0.0002104,2]
[376041282,1753834247932,-291.656937,0.0002104,2]
[376041284,1753834247943,-237.577106,0.0002104,2]
[376041286,1753834247952,-237.577106,0.0002104,2]
[376041288,1753834247962,-151.0,0.0002104,2]
[376041289,1753834247971,-3000.0,0.0002105,2]
[376041292,1753834247981,-3000.0,0.0002106,2]
[376041293,1753834247991,-151.0,0.0002106,2]
[376041295,1753834248001,-435.930306,0.00021068,2]
[376041298,1753834248010,-151.0,0.00021068,2]
[376041299,1753834248019,-3000.0,0.0002107,2]
[376041301,1753834248029,-151.0,0.0002107,2]
[376041304,1753834248039,-151.0,0.0002107,2]
[376041306,1753834248049,-151.0,0.0002107,2]
[376041308,1753834248059,-494.91,0.00021078,2]
[376041310,1753834248069,-460.0,0.00021078,2]
[376041312,1753834248079,-465.29,0.00021078,2]
[376041314,1753834248089,-1629.83,0.00021078,2]
[376041316,1753834248100,-1525.58,0.00021078,2]
[376041318,1753834248110,-460.0,0.00021078,2]
[376041320,1753834248119,-582.34,0.00021078,2]
[376041322,1753834248129,-2448.7,0.00021078,2]
[376041324,1753834248138,-1481.89,0.00021078,2]
[376041326,1753834248148,-460.0,0.00021078,2]
[376041328,1753834248157,-1072.47,0.00021078,2]
[376041330,1753834248167,-460.0,0.00021078,2]
[376041332,1753834248176,-460.0,0.00021078,2]
[376041334,1753834248188,-460.0,0.00021078,2]
[376041336,1753834248200,-151.0,0.00021079,2]
[376041338,1753834248214,-550.605119,0.00021079,2]
[376041340,1753834248229,-550.605119,0.00021079,2]
[376041342,1753834248239,-707.133271,0.00021079,2]
[376041344,1753834248248,-707.133271,0.00021079,2]
[376041346,1753834248258,-460.0,0.00021079,2]
[376041348,1753834248268,-641.04,0.00021079,2]
[376041350,1753834248277,-529.99,0.00021079,2]
[376041352,1753834248287,-518.35,0.00021079,2]
[376041354,1753834248297,-460.0,0.00021079,2]
[376041356,1753834248306,-460.0,0.00021079,2]
[376041358,1753834248316,-460.0,0.00021079,2]
[376041360,1753834248325,-1215.6,0.00021079,2]
[376041362,1753834248335,-1028.48,0.00021079,2]
[376041364,1753834248344,-785.59,0.00021079,2]
[376041366,1753834248354,-151.0,0.0002108,2]
[376041368,1753834248363,-151.0,0.0002108,2]
[376041370,1753834248373,-3000.0,0.0002108,2]
[376041372,1753834248382,-151.0,0.0002108,2]
[376041374,1753834248392,-178.353079,0.0002108,2]
[376041376,1753834248402,-191.816842,0.0002108,2]
[376041378,1753834248411,-191.816842,0.0002108,2]
[376041380,1753834248420,-3619.67,0.0002108,2]
[376041382,1753834248430,-1534.46,0.0002108,2]
[376041384,1753834248440,-590.56,0.0002108,2]
[376041386,1753834248450,-1011.49,0.0002108,2]
[376041388,1753834248459,-1115.69,0.0002108,2]
[376041390,1753834248469,-830.01,0.00021081,2]
[376041392,1753834248478,-151.0,0.00021081,2]
[376041394,1753834248488,-291.656937,0.00021081,2]
[376041396,1753834248503,-291.656939,0.00021081,2]
[376041398,1753834248513,-237.577106,0.00021081,2]
[376041400,1753834248522,-237.577116,0.00021081,2]
[376041402,1753834248532,-151.0,0.00021081,2]
[376041404,1753834248542,-869.0,0.00021084,2]
[376041406,1753834248551,-3000.0,0.0002109,2]
[376041408,1753834248561,-151.0,0.0002109,2]
[376041410,1753834248571,-3000.0,0.000211,2]
[376041412,1753834248580,-500.0,0.00021107,2]
[376041414,1753834248589,-3000.0,0.0002111,2]
[376041416,1753834248598,-151.0,0.0002111,2]
[376041418,1753834248608,-151.0,0.0002111,2]
[376041420,1753834248618,-218.115725,0.0002111,2]
[376041422,1753834248628,-3000.0,0.0002112,2]
[376041424,1753834248637,-4562.6211313,0.00021126,2]
[376041426,1753834248646,-3000.0,0.0002113,2]
[376041428,1753834248656,-3000.0,0.0002114,2]
[376041430,1753834248666,-550.605119,0.0002114,2]
[376041432,1753834248675,-550.605121,0.0002114,2]
[376041434,1753834248685,-3000.0,0.0002115,2]
[376041436,1753834248695,-200.0,0.00021153,15]
[376041438,1753834248704,-200.0,0.00021153,15]
[376041440,1753834248714,-200.0,0.00021153,15]
[376041442,1753834248723,-200.0,0.00021153,15]
[376041444,1753834248733,-320.0,0.00021153,15]
[376041446,1753834248742,-3000.0,0.0002116,2]
[376041448,1753834248752,-707.133271,0.0002116,2]
[376041450,1753834248761,-707.133267,0.0002116,2]
[376041452,1753834248772,-3000.0,0.0002117,2]
[376041454,1753834248781,-3000.0,0.0002118,2]
[376041456,1753834248790,-151.0,0.0002118,2]
[376041458,1753834248800,-178.353079,0.0002118,2]
[376041460,1753834248809,-3000.0,0.0002119,2]
[376041462,1753834248818,-151.0,0.0002119,2]
[376041464,1753834248828,-3000.0,0.000212,2]
[376041466,1753834248837,-3000.0,0.0002121,2]
[376041468,1753834248847,-3000.0,0.0002122,2]
[376041470,1753834248857,-3000.0,0.0002123,2]
[376041472,1753834248867,-151.0,0.0002123,2]
[376041474,1753834248877,-151.0,0.00021236,2]
[376041476,1753834248887,-151.0,0.00021236,2]
[376041478,1753834248897,-3000.0,0.0002124,2]
[376041480,1753834248907,-3000.0,0.0002125,2]
[376041482,1753834248918,-688.1,0.00021255,4]
[376041484,1753834248928,-3000.0,0.0002126,2]
[376041486,1753834248938,-3000.0,0.0002127,2]
[376041488,1753834248948,-3000.0,0.0002128,2]
[376041490,1753834248958,-800.0,0.00021281,2]
[376041492,1753834248968,-3000.0,0.0002129,2]
[376041494,1753834248982,-3000.0,0.000213,2]
[376041496,1753834249002,-151.0,0.000213,3]
[376041498,1753834249013,-3000.0,0.0002131,2]
[376041500,1753834249023,-3000.0,0.0002132,2]
[376041502,1753834249033,-3000.0,0.0002133,2]
[376041503,1753834249043,-3000.0,0.0002134,2]
[376041505,1753834249053,-3000.0,0.0002135,2]
[376041506,1753834249063,-494.91,0.00021352,2]
[376041508,1753834249072,-460.0,0.00021352,2]
[376041510,1753834249082,-465.29,0.00021352,2]
[376041512,1753834249091,-1629.83,0.00021352,2]
[376041513,1753834249101,-1525.58,0.00021352,2]
[376041515,1753834249111,-460.0,0.00021352,2]
[376041517,1753834249229,-582.34,0.00021352,2]
[376041518,1753834249239,-2448.7,0.00021352,2]
[376041519,1753834249249,-1481.89,0.00021352,2]
[376041520,1753834249260,-460.0,0.00021352,2]
[376041521,1753834249270,-1072.47,0.00021352,2]
[376041522,1753834249280,-460.0,0.00021352,2]
[376041523,1753834249290,-460.0,0.00021352,2]
[376041524,1753834249299,-460.0,0.00021352,2]
[376041525,1753834249309,-435.930306,0.00021353,2]
[376041526,1753834249319,-151.0,0.00021353,2]
[376041527,1753834249329,-460.0,0.00021353,2]
[376041528,1753834249339,-641.04,0.00021353,2]
[376041529,1753834249349,-529.99,0.00021353,2]
[376041530,1753834249358,-518.35,0.00021353,2]
[376041531,1753834249367,-460.0,0.00021353,2]
[376041532,1753834249378,-460.0,0.00021353,2]
[376041533,1753834249387,-460.0,0.00021353,2]
[376041534,1753834249397,-1215.6,0.00021353,2]
[376041535,1753834249407,-1028.48,0.00021353,2]
[376041536,1753834249417,-785.59,0.00021353,2]
[376041537,1753834249427,-151.0,0.00021354,2]
[376041538,1753834249437,-3619.67,0.00021354,2]
[376041539,1753834249446,-1534.46,0.00021354,2]
[376041540,1753834249456,-590.56,0.00021354,2]
[376041541,1753834249466,-1011.49,0.00021354,2]
[376041542,1753834249476,-1115.69,0.00021354,2]
[376041543,1753834249486,-151.0,0.00021355,2]
[376041544,1753834249501,-830.01,0.00021355,2]
[376041545,1753834249511,-178.353079,0.00021355,2]
[376041546,1753834249521,-151.0,0.00021356,2]
[376041547,1753834249531,-151.0,0.00021356,2]
[376041548,1753834249541,-500.0,0.00021356,2]
[376041549,1753834249551,-869.0,0.00021358,2]
[376041550,1753834249561,-3000.0,0.0002136,2]
[376041551,1753834249570,-168.17756401,0.0002137,2]
[376041552,1753834249582,-3000.0,0.0002137,2]
[376041553,1753834249592,-593.288,0.00021375,2]
[376041554,1753834249601,-3000.0,0.0002138,2]
[376041555,1753834249614,-3000.0,0.0002139,2]
[376041556,1753834249623,-2000.0,0.00021398,2]
[376041557,1753834249633,-151.0,0.000214,4]
[376041558,1753834249643,-3000.0,0.000214,2]
[376041559,1753834249652,-3000.0,0.0002141,2]
[376041560,1753834249664,-3000.0,0.0002142,2]
[376041561,1753834249675,-3000.0,0.0002143,2]
[376041562,1753834249685,-3392.327395,0.0002144,2]
[376041563,1753834249694,-460.0,0.0002149,2]
[376041564,1753834249704,-688.1,0.00021498,4]
[376041565,1753834249714,-151.0,0.000215,4]
[376041566,1753834249724,-151.0,0.000215,3]
[376041567,1753834249734,-1000.0,0.000215,2]
[376041568,1753834249744,-168.17756401,0.00021534,2]
[376041570,1753834249754,-500.0,0.00021596,2]
[376041572,1753834249764,-494.91,0.00021626,2]
[376041573,1753834249774,-460.0,0.00021626,2]
[376041574,1753834249784,-465.29,0.00021626,2]
[376041575,1753834249794,-1629.83,0.00021626,2]
[376041576,1753834249804,-1525.58,0.00021626,2]
[376041577,1753834249814,-460.0,0.00021626,2]
[376041578,1753834249824,-582.34,0.00021626,2]
[376041579,1753834249834,-2448.7,0.00021626,2]
[376041580,1753834249845,-1481.89,0.00021626,2]
[376041581,1753834249855,-460.0,0.00021626,2]
[376041582,1753834249864,-1072.47,0.00021626,2]
[376041583,1753834249876,-460.0,0.00021626,2]
[376041584,1753834249886,-211.52451834,0.00021626,2]
[376041585,1753834249896,-460.0,0.00021626,2]
[376041586,1753834249906,-460.0,0.00021627,2]
[376041587,1753834249916,-641.04,0.00021627,2]
[376041588,1753834249925,-529.99,0.00021627,2]
[376041589,1753834249936,-518.35,0.00021627,2]
[376041590,1753834249947,-454.95621953,0.00021627,2]
[376041591,1753834249957,-460.0,0.00021627,2]
[376041592,1753834249967,-460.0,0.00021627,2]
[376041593,1753834249977,-1215.6,0.00021627,2]
[376041594,1753834249988,-1028.48,0.00021627,2]
[376041595,1753834249997,-785.59,0.00021627,2]
[376041596,1753834250007,-3619.67,0.00021628,2]
[376041597,1753834250017,-1534.46,0.00021628,2]
[376041598,1753834250027,-590.56,0.00021628,2]
[376041599,1753834250037,-1011.49,0.00021628,2]
[376041600,1753834250047,-1115.69,0.00021628,2]
[376041601,1753834250056,-151.0,0.00021629,2]
[376041602,1753834250066,-830.01,0.00021629,2]
[376041603,1753834250075,-178.353085,0.00021629,2]
[376041604,1753834250086,-869.0,0.00021632,2]
[376041605,1753834250095,-1000.0,0.00021655,2]
[376041606,1753834250105,-1194.77548466,0.0002168,2]
[376041607,1753834250114,-168.17756401,0.00021699,2]
[376041608,1753834250124,-151.0,0.000217,4]
[376041609,1753834250134,-151.0,0.000217,3]
[376041610,1753834250144,-4791.31897605,0.00021739,2]
[376041611,1753834250154,-688.1,0.00021741,4]
[376041612,1753834250163,-151.0,0.000218,4]
[376041613,1753834250173,-151.0,0.000218,4]
[376041614,1753834250182,-179.73040439,0.00021844,2]
[376041615,1753834250196,-168.17756401,0.00021863,2]
[376041616,1753834250206,-494.91,0.000219,2]
[376041617,1753834250215,-460.0,0.000219,2]
[376041618,1753834250225,-465.29,0.000219,2]
[376041619,1753834250235,-1629.83,0.000219,2]
[376041620,1753834250245,-1525.58,0.000219,2]
[376041622,1753834250255,-460.0,0.000219,2]
[376041623,1753834250265,-582.34,0.000219,2]
[376041624,1753834250275,-2448.7,0.000219,2]
[376041625,1753834250285,-1481.89,0.000219,2]
[376041626,1753834250294,-460.0,0.000219,2]
[376041627,1753834250304,-1072.47,0.000219,2]
[376041628,1753834250314,-460.0,0.000219,2]
[376041629,1753834250324,-460.0,0.000219,2]
[376041630,1753834250334,-151.0,0.00021901,2]
[376041631,1753834250344,-435.930306,0.00021901,2]
[376041632,1753834250353,-151.0,0.00021901,2]
[376041634,1753834250363,-460.0,0.00021901,2]
[376041636,1753834250372,-641.04,0.00021901,2]
[376041638,1753834250382,-529.99,0.00021901,2]
[376041640,1753834250391,-518.35,0.00021901,2]
[376041642,1753834250401,-460.0,0.00021901,2]
[376041643,1753834250410,-460.0,0.00021901,2]
[376041646,1753834250421,-1215.6,0.00021901,2]
[376041647,1753834250430,-1028.48,0.00021901,2]
[376041648,1753834250440,-785.59,0.00021901,2]
[376041649,1753834250450,-3619.67,0.00021902,2]
[376041650,1753834250459,-1534.46,0.00021902,2]
[376041651,1753834250468,-590.56,0.00021902,2]
[376041652,1753834250479,-1011.49,0.00021902,2]
[376041653,1753834250489,-1115.69,0.00021902,2]
[376041654,1753834250498,-830.01,0.00021903,2]
[376041655,1753834250508,-869.0,0.00021906,2]
[376041656,1753834250517,-151.0,0.00021907,2]
[376041657,1753834250529,-500.0,0.00021917,2]
[376041658,1753834250539,-500.0,0.00021917,2]
[376041659,1753834250548,-500.0,0.00021917,2]
[376041660,1753834250558,-500.0,0.00021917,2]
[376041661,1753834250568,-500.0,0.00021917,2]
[376041662,1753834250577,-500.0,0.00021917,2]
[376041663,1753834250587,-500.0,0.00021917,2]
[376041664,1753834250597,-150.43678525,0.00021918,2]
[376041665,1753834250606,-200.0,0.00021918,2]
[376041666,1753834250616,-2009.59643762,0.00021946,2]
[376041667,1753834250625,-500.0,0.00021973,2]
[376041668,1753834250635,-501.98986939,0.00021973,2]
[376041669,1753834250644,-500.0,0.00021973,2]
[376041670,1753834250654,-500.0,0.00021973,2]
[376041671,1753834250663,-500.38510417,0.00021973,2]
[376041672,1753834250672,-500.0,0.00021973,2]
[376041673,1753834250682,-500.0,0.00021973,2]
[376041674,1753834250692,-500.0,0.00021973,2]
[376041675,1753834250702,-500.0,0.00021973,2]
[376041676,1753834250711,-393.02978317,0.00021973,2]
[376041677,1753834250721,-501.07928463,0.00021973,2]
[376041678,1753834250730,-500.35188838,0.00021973,2]
[376041679,1753834250740,-500.0,0.00021973,2]
[376041680,1753834250750,-500.0,0.00021973,2]
[376041681,1753834250760,-500.0,0.00021973,2]
[376041682,1753834250769,-204.56815493,0.00021973,2]
[376041683,1753834250779,-500.0,0.00021973,2]
[376041684,1753834250788,-500.0,0.00021973,2]
[376041685,1753834250799,-587.58724841,0.00021973,2]
[376041686,1753834250808,-500.89543393,0.00021973,2]
[376041687,1753834250819,-436.98767834,0.00021973,2]
[376041688,1753834250829,-500.0,0.00021973,2]
[376041689,1753834250838,-500.0,0.00021973,2]
[376041690,1753834250848,-500.0,0.00021973,2]
[376041691,1753834250857,-500.0,0.00021973,2]
[376041692,1753834250866,-500.0,0.00021973,2]
[376041693,1753834250875,-500.0,0.00021973,2]
[376041694,1753834250884,-501.11774206,0.00021973,2]